Workbook

Sheet 目录
B2: 部门预算公开表目录
B3: 序号 | C3: 名称 | D3: 备注
B4: 1 | C4: 2022年部门收支总体情况表
B5: 2 | C5: 2022年部门收入总体情况表
B6: 3 | C6: 2022年部门支出总体情况表
B7: 4 | C7: 2022年财政拨款收支总体情况表
B8: 5 | C8: 2022年一般公共预算支出情况表
B9: 6 | C9: 2022年一般公共预算基本支出情况表
B10: 7 | C10: 2022年一般公共预算“三公”经费支出情况表
B11: 8 | C11: 2022年政府性基金预算支出情况表
B12: 9 | C12: 2022年整体支出绩效目标表
B13: 10 | C13: 2022年项目支出绩效目标表

Sheet 1、2022年部门收支总体情况表
H1: 部门公开表01
A2: 2022年部门收支总体情况表
A3: 部门：301006_临湘市第二人民医院 | G3: 金额单位：万元
A4: 收入 | C4: 支出
A5: 项目 | B5: 预算数 | C5: 项目（按功能分类） | D5: 预算数 | E5: 项目（按部门预算经济分类） | F5: 预算数 | G5: 项目（按政府预算经济分类） | H5: 预算数
A6: 一、一般公共预算拨款收入 | B6: 352.57 | C6: （一）一般公共服务支出 | E6: 一、基本支出 | F6: 726.02 | G6: 一、机关工资福利支出 | H6: 646.57
A7: 经费拨款 | B7: 352.57 | C7: （二）外交支出 | E7: 工资福利支出 | F7: 646.57 | G7: 二、机关商品和服务支出 | H7: 254.34
A8: 纳入一般公共预算管理的非税收入拨款 | C8: （三）国防支出 | E8: 商品和服务支出 | F8: 78.70 | G8: 三、机关资本性支出（一）
A9: 行政事业性收费收入 | C9: （四）公共安全支出 | E9: 对个人和家庭的补助 | F9: 0.76 | G9: 四、机关资本性支出（二）
A10: 专项收入 | C10: （五）教育支出 | E10: 二、项目支出 | F10: 226.54 | G10: 五、对事业单位经常性补助 | H10: 50.90
A11: 国有资本经营收入 | C11: （六）科学技术支出 | E11: 按项目管理的工资福利支出 | G11: 六、对事业单位资本性补助
A12: 国有资源（资产）有偿使用收入 | C12: （七）文化旅游体育与传媒支出 | E12: 按项目管理的商品和服务支出 | F12: 226.54 | G12: 七、对企业补助
A13: 罚没收入 | C13: （八）社会保障和就业支出 | D13: 89.98 | E13: 按项目管理的对个人和家庭的补助 | G13: 八、对企业资本性支出
A14: 捐赠收入 | C14: （九）社会保险基金支出 | E14: 债务利息及费用支出 | G14: 九、对个人和家庭的补助 | H14: 0.76
A15: 政府住房基金收入 | C15: （十）卫生健康支出 | D15: 808.71 | E15: 资本性支出（基本建设） | G15: 十、对社会保障基金补助
A16: 其他纳入一般公共预算管理的非税收入 | C16: （十一）节能环保支出 | E16: 资本性支出 | G16: 十一、债务利息及费用支出
A17: 一般债券 | C17: （十二）城乡社区支出 | E17: 对企业补助（基本建设） | G17: 十二、债务还本支出
A18: 外国政府和国际组织贷款 | C18: （十三）农林水支出 | E18: 对企业补助 | G18: 十三、转移性支出
A19: 外国政府和国际组织捐赠 | C19: （十四）交通运输支出 | E19: 对社会保障基金补助 | G19: 十四、其他支出
A20: 二、政府性基金预算拨款收入 | C20: （十五）资源勘探工业信息等支出 | E20: 其他支出
A21: 三、国有资本经营预算拨款收入 | C21: （十六）商业服务业等支出 | E21: 三、事业单位经营服务支出
A22: 四、社会保障基金预算资金 | C22: （十七）金融支出
A23: 五、财政专户管理资金收入 | B23: 600.00 | C23: （十八）援助其他地区支出
A24: 六、上级财政补助收入 | C24: （十九）自然资源海洋气象等支出
A25: 一般公共预算补助 | C25: （二十）住房保障支出 | D25: 53.88
A26: 政府性基金补助 | C26: （二十一）粮油物资储备支出
A27: 国有资本经营预算补助 | C27: （二十二）国有资本经营预算支出
A28: 七、事业收入 | C28: （二十三）灾害防治及应急管理支出
A29: 八、事业单位经营收入 | C29: （二十四）预备费
A30: 九、上级单位补助收入 | C30: （二十五）其他支出
A31: 十、附属单位上缴收入 | C31: （二十六）转移性支出
A32: 十一、其他收入 | C32: （二十七）债务还本支出
C33: （二十八）债务付息支出
C34: （二十九）债务发行费用支出
C35: （三十）抗疫特别国债安排的支出
A37: 本 年 收 入 合 计 | B37: 952.57 | C37: 本 年 支 出 合 计 | D37: 952.57 | E37: 本 年 支 出 合 计 | F37: 952.57 | G37: 本 年 支 出 合 计 | H37: 952.57

Sheet 2、2022年部门收入总体情况表
Q1: 部门公开表02
A2: 2022年部门收入总体情况表
A3: 部门：301006_临湘市第二人民医院 | Q3: 金额单位：万元
A4: 部门（单位）代码 | B4: 部门（单位）名称 | C4: 合计 | D4: 本年收入
D5: 小计 | E5: 一般公共预算 | F5: 政府性基金预算 | G5: 国有资本经营预算 | H5: 社会保险基金预算资金 | I5: 财政专户管理资金 | J5: 上级财政补助收入 | N5: 事业收入 | O5: 事业单位经营收入 | P5: 上级单位补助收入 | Q5: 附属单位上缴收入 | R5: 其他收入
J6: 一般公共预算补助 | K6: 政府性基金补助 | L6: 国有资本经营预算补助 | M6: 社会保险基金预算资金
B7: 合计 | C7: 952.57 | D7: 952.57 | E7: 352.57 | I7: 600.00
A8: 301 | B8: 临湘市卫生健康局 | C8: 952.57 | D8: 952.57 | E8: 352.57 | I8: 600.00
A9: 301006 | B9: 临湘市血吸虫病防治专科医院 | C9: 952.57 | D9: 952.57 | E9: 352.57 | I9: 600.00

Sheet 3、2022年部门支出总体情况表
I1: 部门公开表03
A2: 2022年部门支出总体情况表
A3: 部门：301006_临湘市第二人民医院 | I3: 金额单位：万元
A4: 单位 | C4: 总计 | D4: 基本支出 | G4: 项目支出
A5: 编码 | B5: 名称 | D5: 合计 | E5: 人员类 | F5: 公用经费 | G5: 合计 | H5: 其他运转类 | I5: 特定目标类
A6: 总计: | C6: =D6+G6 -> 952.57 | D6: =E6+F6 -> 726.03 | E6: =E17+E12+E8 -> 647.33 | F6: =F17+F12+F8 -> 78.70 | G6: =G17+G12+G8 -> 226.54 | H6: =H17+H12+H8 -> 226.54
A7: 301006 | B7: 临湘市血吸虫病防治专科医院 | C7: =D7+G7 -> 647.33 | D7: =E7+F7 -> 647.33 | E7: =E8+E12+E17 -> 647.33
A8: 208 | B8: 社会保障和就业支出 | C8: 89.98 | D8: 89.98 | E8: =E9 -> 89.98
A9: 20805 | B9: 行政事业单位养老支出 | C9: 89.98 | D9: 89.98 | E9: =E11+E10 -> 89.98
A10: 2080505 | B10: 机关事业单位基本养老保险缴费支出 | C10: 71.85 | D10: 71.85 | E10: 71.85
A11: 2080506 | B11: 机关事业单位职业年金缴费支出 | C11: 18.13 | D11: 18.13 | E11: 18.13
A12: 221 | B12: 住房保障支出 | C12: 53.88 | D12: 53.88 | E12: 53.88
A13: 22102 | B13: 住房改革支出 | C13: 53.88 | D13: 53.88 | E13: 53.88
A14: 2210201 | B14: 住房公积金 | C14: 53.88 | D14: 53.88 | E14: 53.88
A15: 210 | B15: 卫生健康支出 | C15: 808.71 | D15: 582.17 | E15: =E16 -> 503.47 | F15: =F16 -> 78.7 | G15: =G16 -> 226.54 | H15: =H16 -> 226.54
A16: 21002 | B16: 公立医院 | C16: 808.71 | D16: 582.17 | E16: =E17 -> 503.47 | F16: =F17 -> 78.7 | G16: =G17 -> 226.54 | H16: =H17 -> 226.54
A17: 2100299 | B17: 其他公立医院支出 | C17: 808.71 | D17: 582.17 | E17: 503.47 | F17: 78.7 | G17: =H17 -> 226.54 | H17: 226.54

Sheet 4、2022年财政拨款收支总体情况表
D1: 部门公开表04
A2: 2022年财政拨款收支总体情况表
A3: 部门：301006_临湘市第二人民医院 | D3: 金额单位：万元
A4: 收入 | C4: 支出
A5: 项目 | B5: 预算数 | C5: 项目 | D5: 预算数
A6: 一、本年收入 | B6: 352.57 | C6: 一、本年支出 | D6: 352.57
A7: （一）一般公共预算拨款 | B7: 352.57 | C7: （一）一般公共服务支出
A8: 经费拨款 | B8: 352.57 | C8: （二）外交支出
A9: 纳入一般公共预算管理的非税收入拨款 | C9: （三）国防支出
A10: （二）政府性基金预算拨款 | C10: （四）公共安全支出
A11: （三）国有资本经营预算拨款 | C11: （五）教育支出
A12: （四）社会保险基金预算资金 | C12: （六）科学技术支出
A13: 二、上年结转 | C13: （七）文化旅游体育与传媒支出
A14: （一）一般公共预算拨款 | C14: （八）社会保障和就业支出 | D14: 35.58
A15: （二）政府性基金预算拨款 | C15: （九）社会保险基金支出
A16: （三）国有资本经营预算拨款 | C16: （十）卫生健康支出 | D16: 290.30
A17: （四）社会保险基金预算资金 | C17: （十一）节能环保支出
C18: （十二）城乡社区支出
C19: （十三）农林水支出
C20: （十四）交通运输支出
C21: （十五）资源勘探工业信息等支出
C22: （十六）商业服务业等支出
C23: （十七）金融支出
C24: （十八）援助其他地区支出
C25: （十九）自然资源海洋气象等支出
C26: （二十）住房保障支出 | D26: 26.69
C27: （二十一）粮油物资储备支出
C28: （二十二）国有资本经营预算支出
C29: （二十三）灾害防治及应急管理支出
C30: （二十四）预备费
C31: （二十五）其他支出
C32: （二十六）转移性支出
C33: （二十七）债务还本支出
C34: （二十八）债务付息支出
C35: （二十九）债务发行费用支出
C36: （三十）抗疫特别国债安排的支出
C38: 二、年终结转结余
A40: 收 入 总 计 | B40: 352.57 | C40: 支 出 总 计 | D40: 352.57

Sheet 5、2022年一般公共预算支出情况表
A2: 2022年一般公共预算支出情况表
A3: 部门：301006_临湘市第二人民医院
A4: 单位：万元
A5: 科目编码 | B5: 科目名称 | C5: 合计 | D5: 基本支出 | G5: 项目支出
D6: 小计 | E6: 人员经费 | F6: 公用经费
A7: 总计： | C7: 352.57 | D7: 348.57 | E7: 312.17 | F7: 36.40 | G7: 4.00
A8: 208 | B8: 社会保障和就业支出 | C8: 35.58 | D8: 35.58 | E8: 35.58
A9: 20805 | B9: 行政事业单位养老支出 | C9: 35.58 | D9: 35.58 | E9: 35.58
A10: 2080505 | B10: 机关事业单位基本养老保险缴费支出 | C10: 35.58 | D10: 35.58 | E10: 35.58
A11: 210 | B11: 卫生健康支出 | C11: 290.30 | D11: 286.30 | E11: 249.90 | F11: 36.40 | G11: 4.00
A12: 21002 | B12: 公立医院 | C12: 290.30 | D12: 286.30 | E12: 249.90 | F12: 36.40 | G12: 4.00
A13: 2100299 | B13: 其他公立医院支出 | C13: 290.30 | D13: 286.30 | E13: 249.90 | F13: 36.40 | G13: 4.00
A14: 221 | B14: 住房保障支出 | C14: 26.69 | D14: 26.69 | E14: 26.69
A15: 22102 | B15: 住房改革支出 | C15: 26.69 | D15: 26.69 | E15: 26.69
A16: 2210201 | B16: 住房公积金 | C16: 26.69 | D16: 26.69 | E16: 26.69
A17: 注：如本表格为空，则表示本年度未安排此项目

Sheet 6、2022年一般公共预算基本支出情况表
D1: 部门公开表06
A2: 2022年一般公共预算基本支出情况表
A3: 部门：301006_临湘市第二人民医院 | E3: 金额单位：万元
A4: 部门预算支出经济分类科目 | C4: 本年一般公共预算基本支出
A5: 科目编码 | B5: 科目名称 | C5: 合计 | D5: 人员经费 | E5: 公用经费
A6: 301 | B6: 工资福利支出 | C6: =C7+C8+C9+C10+C11+C12+C13 -> 311.41 | D6: =D7+D8+D9+D10+D11+D12+D13 -> 311.41
A7: 30108 | B7: 机关事业单位基本养老保险支出 | C7: =D7+E7 -> 35.58 | D7: 35.58
A8: 30112 | B8: 其他社会保障缴费 | C8: 2.32 | D8: 2.32
A9: 30107 | B9: 绩效工资 | C9: 74.92 | D9: 74.92
A10: 30199 | B10: 其他工资福利支出 | C10: 8.85 | D10: 8.85
A11: 30101 | B11: 基本工资 | C11: 147.48 | D11: 147.48
A12: 30110 | B12: 职工基本医疗保险缴费 | C12: 15.57 | D12: 15.57
A13: 30113 | B13: 住房公积金 | C13: 26.69 | D13: 26.69
A14: 303 | B14: 对个人和家庭的补助 | C14: 0.76 | D14: =D15 -> 0.76
A15: 30304 | B15: 抚恤金 | C15: 0.76 | D15: 0.76
A16: 302 | B16: 商品和服务支出 | C16: 36.40 | E16: =E17+E18+E19+E20+E21+E22+E23+E24+E25+E26+E27+E28+E29 -> 36.40
A17: 30201 | B17: 办公费 | C17: 0.80 | E17: 0.80
A18: 30205 | B18: 水费 | C18: 1.00 | E18: 1.00
A19: 30206 | B19: 电费 | C19: 1.50 | E19: 1.50
A20: 30211 | B20: 差旅费 | C20: 0.50 | E20: 0.50
A21: 30213 | B21: 维修（护）费 | C21: 2.00 | E21: 2.00
A22: 30216 | B22: 培训费 | C22: 1.00 | E22: 1.00
A23: 30217 | B23: 公务接待费 | C23: 3.60 | E23: 3.60
A24: 30224 | B24: 被装购置费 | C24: 1.00 | E24: 1.00
A25: 30226 | B25: 劳务费 | C25: 0.50 | E25: 0.50
A26: 30228 | B26: 工会经费 | C26: 5.00 | E26: 5.00
A27: 30229 | B27: 福利费 | C27: 1.00 | E27: 1.00
A28: 30231 | B28: 公务用车维护费 | C28: 5.00 | E28: 5.00
A29: 30299 | B29: 其他商品和服务支出 | C29: 13.50 | E29: 13.50
A30: 合 计 | C30: =C16+C14+C6 -> 348.57 | D30: =D14+D6 -> 312.17 | E30: =E16 -> 36.40

Sheet 7、2022年一般公共预算“三公”经费支出情况表
G1: 部门公开表07
A2: 2022年一般公共预算“三公”经费支出情况表
A3: 部门：301006_临湘市第二人民医院 | G3: 金额单位：万元
A4: 单位编码 | B4: 单位名称 | C4: “三公”经费合计 | D4: 因公出国（境）费 | E4: 公务用车购置及运行费 | H4: 公务接待费
E5: 小计 | F5: 公务用车购置费 | G5: 公务用车运行费
B6: 合计 | C6: 8.60 | D6: 0.00 | E6: 5.00 | F6: 0.00 | G6: 5.00 | H6: 3.60
A7: 301 | B7: 临湘市卫生健康局 | C7: 8.60 | D7: 0.00 | E7: 5.00 | F7: 0.00 | G7: 5.00 | H7: 3.60
A8: 301006 | B8: 临湘市血吸虫病防治专科医院 | C8: 8.60 | D8: 0.00 | E8: 5.00 | F8: 0.00 | G8: 5.00 | H8: 3.60

Sheet 8、2022年政府性基金预算支出情况表
G1: 部门公开表08
A2: 2022年政府性基金预算支出情况表
A3: 部门：301006_临湘市第二人民医院 | H3: 金额单位：万元
A4: 科目编码 | B4: 科目名称 | C4: 合计 | D4: 本年政府性基金预算支出 | H4: 项目支出
D5: 小计 | E5: 人员经费 | G5: 公用经费
E6: 工资福利支出 | F6: 对个人和家庭的补助
B7: 合计
A14: 本单位2022年度没有政府性基金预算安排，本表数据为空

Sheet 9、2022年整体支出绩效目标表
L1: 部门公开表09
A2: 2022年部门整体支出绩效目标表
A3: 部门：301006_临湘市第二人民医院 | L3: 金额单位：万元
A4: 部门名称 | B4: 年度预算申请 | I4: 部门职能职责描述 | J4: 整体绩效目标 | K4: 部门整体支出年度绩效目标
B5: 资金总额 | C5: 按收入性质分 | G5: 按支出性质分 | K5: 产出指标 | L5: 效益指标
C6: 一般公共预算 | D6: 政府性基金拨款 | E6: 财政专户管理资金 | F6: 其他资金 | G6: 基本支出 | H6: 项目支出
A7: 合计 | B7: 952.57 | C7: 352.57 | D7: 0.00 | E7: 600.00 | F7: 0.00 | G7: 726.02 | H7: 226.55
A8: 临湘市血吸虫病防治专科医院 | B8: 952.57 | C8: 352.57 | D8: 0.00 | E8: 600.00 | F8: 0.00 | G8: 726.02 | H8: 226.55 | I8: 为人民身体健康提供血吸虫病医疗、预防保健与医疗服务。负责宣传血吸虫病防治知识、作好血吸虫病查治预防、抢治和鉴定工作；负责开展一些常见病、多发病的诊治工作。 | J8: 为人民身体健康提供血吸虫病医疗、预防保健与医疗服务，负责宣传血吸虫病防治知识、做好血吸虫病查治预防、抢治和鉴定工作，负责开展一些常见病、多发病的诊治工作。切实做好新冠肺炎疫情防控工作，负责全市新冠肺炎定点救治医疗及医学隔离观察服务工作。 | K8: 血吸虫病救治工作：作为全市血吸虫病救治定点医院，我院积极开展了慢血和晚血病人的救治工作，保护了患者健康，落实了党和政府的关怀。医保工作：按照市医保政策要求，加强医保政策宣传，提高群众对政策的知晓度；加强住院指症审核及住院费用控制，确保基金安全；简化手续流程,实行“即付即补”，让惠民政策也便民。 | L8: 通过回访出院病人，病人满意率为98%；对于收集到的反馈意见和建议，均及时进行了改进和反馈。医院适时组织人力、物力，破常规开展下乡治疗工作，取得了令人满意的效果，医院通过设置责任制，促进了优质护理服务质量的提高

Sheet 10、2022年项目支出绩效目标表
J1: 部门公开表10
A2: 2022年项目支出绩效目标表
A3: 部门：301006_临湘市第二人民医院 | J3: 金额单位：万元
A4: 单位名称 | B4: 项目名称 | C4: 资金总额 | D4: 项目总体绩效目标 | E4: 绩效指标
E5: 一级指标 | F5: 二级指标 | G5: 三级指标 | H5: 指标值 | I5: 指标值内容 | J5: 指标值类型
A6: 临湘市血吸虫病防治专科医院 | B6: 其他医疗活动的商品和服务支出 | C6: 222.54 | D6: 满足医疗业务活动的正常支出 | E6: 效益指标 | F6: 经济效益指标 | G6: 不适用 | H6: 不适用 | I6: 不适用 | J6: 定量
F7: 社会效益指标 | G7: 提高医疗业务质量 | H7: 有所提高 | I7: 提高医疗业务活动 | J7: 定量
F8: 生态效益指标 | G8: 不适用 | H8: 不适用 | I8: 不适用 | J8: 定量
F9: 科持续性影响 | G9: 不适用 | H9: 不适用 | I9: 不适用 | J9: 不适用
F10: 服务对象满意度指标 | G10: 患者满意度 | H10: ≥95% | I10: 绝大部分患者满意 | J10: 定量
E11: 产出指标 | F11: 产出数量指标 | G11: 控制在预算范围之内 | H11: 2225449.8 | I11: 医疗业务活动 | J11: 定量
F12: 产出质量指标 | G12: 满足业务正常发展 | H12: 100% | I12: 医疗业务活动 | J12: 定量
F13: 产出成本指标 | G13: 控制在预算范围之内 | H13: 2225449.8 | I13: 医疗业务活动 | J13: 定量
F14: 产出时效指标 | G14: 年内完成各项工作任务 | H14: 2022/12/31 | I14: 医疗业务活动 | J14: 定量
B15: 晚期血吸虫病患者救助 | C15: 4.00 | D15: 晚期血吸虫病患者救助 | E15: 效益指标 | F15: 经济效益指标 | G15: 减轻晚期血吸虫病患者治疗救助费用 | H15: 有所提高 | I15: 晚期血吸虫病患者救助 | J15: 定性
F16: 社会效益指标 | G16: 减轻晚期血吸虫病患者治疗救助费用 | H16: 有所提高 | I16: 无负面影响 | J16: 定性
F17: 生态效益指标 | G17: 减轻晚期血吸虫病患者治疗救助费用 | H17: 不适应 | I17: 晚期血吸虫病患者救助 | J17: 定性
F18: 科持续性影响 | G18: 不适用 | H18: 不适用 | I18: 不适用 | J18: 不适用
F19: 服务对象满意度指标 | G19: 患者满意度 | H19: ≥95% | I19: 绝大部分患者满意 | J19: 定量
E20: 产出指标 | F20: 产出数量指标 | G20: 控制在预算范围之内 | H20: 40000 | I20: 医疗业务活动 | J20: 定量
F21: 产出质量指标 | G21: 满足业务正常发展 | H21: 100% | I21: 医疗业务活动 | J21: 定量
F22: 产出成本指标 | G22: 控制在预算范围之内 | H22: 40000 | I22: 医疗业务活动 | J22: 定量
F23: 产出时效指标 | G23: 年内完成工作任务 | H23: 2022/12/31 | I23: 医疗业务活动 | J23: 定量
